fUSD/lending_fUSD_20260622
["ID","MTS","AMOUNT","RATE_DAILY","PERIOD"]
[425998620,1782088248000,-500.0,0.00027397,2]
[425998628,1782088248000,-500.0,0.00027397,2]
[425998630,1782088248000,-500.0,0.00027397,2]
[425998647,1782088248000,-300.0,0.00027397,3]
[425998648,1782088248000,-209.16447524,0.00027397,2]
[425998640,1782088248000,-500.0,0.00027397,2]
[425998638,1782088248000,-500.0,0.00027397,2]
[425998636,1782088248000,-500.0,0.00027397,2]
[425998639,1782088248000,-500.0,0.00027397,2]
[425998631,1782088248000,-500.0,0.00027397,2]
[425998634,1782088248000,-500.0,0.00027397,2]
[425998633,1782088248000,-500.0,0.00027397,2]
[425998629,1782088248000,-500.0,0.00027397,2]
[425998632,1782088248000,-530.63697648,0.00027397,2]
[425998716,1782088249000,-245.97983047,0.00027397,2]
[425998704,1782088249000,-500.0,0.00027397,2]
[425998711,1782088249000,-355.25932634,0.00027397,2]
[425998705,1782088249000,-781.73,0.00027397,2]
[425998709,1782088249000,-500.0,0.00027397,2]
[425998708,1782088249000,-500.0,0.00027397,2]
[425998714,1782088249000,-520.85,0.00027397,2]
[425998710,1782088249000,-500.0,0.00027397,2]
[425998707,1782088249000,-500.0,0.00027397,2]
[425998713,1782088249000,-500.0,0.00027397,2]
[425998726,1782088249000,-500.0,0.00027397,2]
[425998712,1782088249000,-282.76289234,0.00027397,2]
[425998717,1782088249000,-500.0,0.00027397,2]
[425998723,1782088249000,-500.0,0.00027397,2]
[425998721,1782088249000,-500.0,0.00027397,2]
[425998718,1782088249000,-500.0,0.00027397,2]
[425998715,1782088249000,-518.89859704,0.00027397,2]
[425998722,1782088249000,-500.0,0.00027397,2]
[425998720,1782088249000,-500.0,0.00027397,2]
[425998725,1782088249000,-500.0,0.00027397,2]
[425998724,1782088249000,-500.0,0.00027397,2]
[425998727,1782088249000,-500.0,0.00027397,2]
[425998729,1782088249000,-500.0,0.00027397,2]
[425998736,1782088249000,-500.0,0.00027397,2]
[425998733,1782088249000,-500.0,0.00027397,2]
[425998706,1782088249000,-500.0,0.00027397,2]
[425998719,1782088249000,-500.0,0.00027397,2]
[425998703,1782088249000,-500.0,0.00027397,2]
[425998730,1782088249000,-500.0,0.00027397,2]
[425998700,1782088249000,-500.0,0.00027397,2]
[425998674,1782088249000,-500.0,0.00027397,2]
[425998675,1782088249000,-616.3,0.00027397,2]
[425998676,1782088249000,-500.0,0.00027397,2]
[425998677,1782088249000,-500.0,0.00027397,2]
[425998682,1782088249000,-500.0,0.00027397,2]
[425998680,1782088249000,-1609.03,0.00027397,2]
[425998678,1782088249000,-500.0,0.00027397,2]
[425998679,1782088249000,-523.09747319,0.00027397,2]
[425998683,1782088249000,-500.0,0.00027397,2]
[425998681,1782088249000,-500.0,0.00027397,2]
[425998695,1782088249000,-500.0,0.00027397,2]
[425998684,1782088249000,-800.23,0.00027397,2]
[425998685,1782088249000,-500.0,0.00027397,2]
[425998687,1782088249000,-500.0,0.00027397,2]
[425998686,1782088249000,-500.0,0.00027397,2]
[425998688,1782088249000,-500.0,0.00027397,2]
[425998692,1782088249000,-2000.0,0.00027397,2]
[425998691,1782088249000,-500.0,0.00027397,2]
[425998689,1782088249000,-500.0,0.00027397,2]
[425998693,1782088249000,-908.35,0.00027397,2]
[425998690,1782088249000,-512.55707541,0.00027397,2]
[425998694,1782088249000,-500.0,0.00027397,2]
[425998696,1782088249000,-178.1806447,0.00027397,2]
[425998701,1782088249000,-648.54,0.00027397,2]
[425998698,1782088249000,-507.68186157,0.00027397,2]
[425998702,1782088249000,-500.0,0.00027397,2]
[425998697,1782088249000,-184.26897271,0.00027397,2]
[425998699,1782088249000,-500.0,0.00027397,2]
[425998728,1782088249000,-3883.31,0.00027397,2]
[425998787,1782088249000,-546.13075202,0.00027397,2]
[425998732,1782088249000,-500.0,0.00027397,2]
[425998766,1782088249000,-561.29,0.00027397,2]
[425998759,1782088249000,-665.85,0.00027397,2]
[425998779,1782088249000,-500.0,0.00027397,2]
[425998769,1782088249000,-500.0,0.00027397,2]
[425998773,1782088249000,-218.20538389,0.00027397,2]
[425998780,1782088249000,-500.0,0.00027397,2]
[425998772,1782088249000,-500.0,0.00027397,2]
[425998774,1782088249000,-518.6456734,0.00027397,2]
[425998768,1782088249000,-500.0,0.00027397,2]
[425998771,1782088249000,-500.0,0.00027397,2]
[425998770,1782088249000,-552.47,0.00027397,2]
[425998777,1782088249000,-4106.65,0.00027397,2]
[425998761,1782088249000,-3735.66,0.00027397,2]
[425998776,1782088249000,-500.0,0.00027397,2]
[425998784,1782088249000,-7776.72,0.00027397,2]
[425998792,1782088249000,-500.0,0.00027397,2]
[425998789,1782088249000,-309.26876105,0.00027397,2]
[425998781,1782088249000,-844.66,0.00027397,2]
[425998790,1782088249000,-500.0,0.00027397,2]
[425998785,1782088249000,-500.0,0.00027397,2]
[425998786,1782088249000,-500.0,0.00027397,2]
[425998783,1782088249000,-6261.32,0.00027397,2]
[425998791,1782088249000,-500.0,0.00027397,2]
[425998788,1782088249000,-500.0,0.00027397,2]
[425998782,1782088249000,-1465.91,0.00027397,2]
[425998731,1782088249000,-500.0,0.00027397,2]
[425998775,1782088249000,-3256.45,0.00027397,2]
[425998760,1782088249000,-500.0,0.00027397,2]
[425998778,1782088249000,-500.0,0.00027397,2]
[425998762,1782088249000,-1004.74,0.00027397,2]
[425998734,1782088249000,-500.0,0.00027397,2]
[425998764,1782088249000,-500.0,0.00027397,2]
[425998740,1782088249000,-500.0,0.00027397,2]
[425998735,1782088249000,-1723.91,0.00027397,2]
[425998738,1782088249000,-519.3,0.00027397,2]
[425998739,1782088249000,-500.0,0.00027397,2]
[425998742,1782088249000,-524.16393708,0.00027397,2]
[425998753,1782088249000,-320.40893862,0.00027397,2]
[425998752,1782088249000,-500.0,0.00027397,2]
[425998741,1782088249000,-500.0,0.00027397,2]
[425998745,1782088249000,-4671.75,0.00027397,2]
[425998744,1782088249000,-1047.69,0.00027397,2]
[425998743,1782088249000,-500.0,0.00027397,2]
[425998748,1782088249000,-2591.98,0.00027397,2]
[425998737,1782088249000,-551.03473978,0.00027397,2]
[425998763,1782088249000,-4864.87,0.00027397,2]
[425998765,1782088249000,-500.0,0.00027397,2]
[425998767,1782088249000,-500.0,0.00027397,2]
[425998758,1782088249000,-500.0,0.00027397,2]
[425998747,1782088249000,-500.0,0.00027397,2]
[425998755,1782088249000,-500.0,0.00027397,2]
[425998757,1782088249000,-500.0,0.00027397,2]
[425998754,1782088249000,-500.0,0.00027397,2]
[425998750,1782088249000,-500.0,0.00027397,2]
[425998749,1782088249000,-500.0,0.00027397,2]
[425998751,1782088249000,-500.0,0.00027397,2]
[425998746,1782088249000,-500.0,0.00027397,2]
[425998756,1782088249000,-500.0,0.00027397,2]
[425998834,1782088250000,-500.0,0.00027397,2]
[425998836,1782088250000,-500.0,0.00027397,2]
[425998831,1782088250000,-927.24,0.00027397,2]
[425998829,1782088250000,-500.0,0.00027397,2]
[425998830,1782088250000,-500.0,0.00027397,2]
[425998824,1782088250000,-500.0,0.00027397,2]
[425998827,1782088250000,-500.0,0.00027397,2]
[425998826,1782088250000,-1083.55,0.00027397,2]
[425998823,1782088250000,-500.0,0.00027397,2]
[425998825,1782088250000,-1209.76,0.00027397,2]
[425998837,1782088250000,-5006.52,0.00027397,2]
[425998833,1782088250000,-500.0,0.00027397,2]
[425998828,1782088250000,-868.2,0.00027397,2]
[425998838,1782088250000,-500.0,0.00027397,2]
[425998846,1782088250000,-500.0,0.00027397,2]
[425998840,1782088250000,-500.0,0.00027397,2]
[425998844,1782088250000,-150.0,0.00027397,2]
[425998845,1782088250000,-150.0,0.00027397,2]
[425998839,1782088250000,-3879.29,0.00027397,2]
[425998842,1782088250000,-500.0,0.00027397,2]
[425998843,1782088250000,-1144.58,0.00027397,2]
[425998841,1782088250000,-500.0,0.00027397,2]
[425998858,1782088250000,-4924.77,0.00027397,2]
[425998848,1782088250000,-271.70590376,0.00027397,2]
[425998859,1782088250000,-500.0,0.00027397,2]
[425998849,1782088250000,-500.0,0.00027397,2]
[425998847,1782088250000,-150.0,0.00027397,2]
[425998835,1782088250000,-500.0,0.00027397,2]
[425998832,1782088250000,-500.0,0.00027397,2]
[425998793,1782088250000,-500.0,0.00027397,2]
[425998821,1782088250000,-500.0,0.00027397,2]
[425998850,1782088250000,-500.0,0.00027397,2]
[425998794,1782088250000,-565.89,0.00027397,2]
[425998796,1782088250000,-500.0,0.00027397,2]
[425998806,1782088250000,-500.0,0.00027397,2]
[425998807,1782088250000,-500.0,0.00027397,2]
[425998795,1782088250000,-500.0,0.00027397,2]
[425998798,1782088250000,-500.0,0.00027397,2]
[425998797,1782088250000,-500.0,0.00027397,2]
[425998803,1782088250000,-1080.44,0.00027397,2]
[425998799,1782088250000,-500.0,0.00027397,2]
[425998802,1782088250000,-500.0,0.00027397,2]
[425998801,1782088250000,-3645.89,0.00027397,2]
[425998800,1782088250000,-500.0,0.00027397,2]
[425998804,1782088250000,-500.0,0.00027397,2]
[425998810,1782088250000,-500.0,0.00027397,2]
[425998808,1782088250000,-560.83886549,0.00027397,2]
[425998809,1782088250000,-500.0,0.00027397,2]
[425998811,1782088250000,-584.96,0.00027397,2]
[425998818,1782088250000,-4055.16,0.00027397,2]
[425998815,1782088250000,-500.0,0.00027397,2]
[425998819,1782088250000,-487.55007699,0.00027397,2]
[425998812,1782088250000,-3339.41,0.00027397,2]
[425998816,1782088250000,-500.0,0.00027397,2]
[425998814,1782088250000,-500.0,0.00027397,2]
[425998820,1782088250000,-5875.21,0.00027397,2]
[425998817,1782088250000,-500.0,0.00027397,2]
[425998813,1782088250000,-1056.03,0.00027397,2]
[425998822,1782088250000,-507.54225272,0.00027397,2]
[425998851,1782088250000,-500.0,0.00027397,2]
[425998805,1782088250000,-3618.62,0.00027397,2]
[425998853,1782088250000,-3405.64,0.00027397,2]
[425998889,1782088250000,-500.0,0.00027397,2]
[425998885,1782088250000,-500.0,0.00027397,2]
[425998883,1782088250000,-500.0,0.00027397,2]
[425998891,1782088250000,-3084.33,0.00027397,2]
[425998890,1782088250000,-500.0,0.00027397,2]
[425998893,1782088250000,-5949.13,0.00027397,2]
[425998895,1782088250000,-500.0,0.00027397,2]
[425998896,1782088250000,-500.0,0.00027397,2]
[425998894,1782088250000,-500.0,0.00027397,2]
[425998905,1782088250000,-500.0,0.00027397,2]
[425998902,1782088250000,-4614.65,0.00027397,2]
[425998898,1782088250000,-500.0,0.00027397,2]
[425998899,1782088250000,-500.0,0.00027397,2]
[425998897,1782088250000,-500.0,0.00027397,2]
[425998904,1782088250000,-832.58,0.00027397,2]
[425998908,1782088250000,-500.0,0.00027397,2]
[425998901,1782088250000,-500.0,0.00027397,2]
[425998900,1782088250000,-500.0,0.00027397,2]
[425998903,1782088250000,-500.0,0.00027397,2]
[425998911,1782088250000,-741.05,0.00027397,2]
[425998910,1782088250000,-4222.92,0.00027397,2]
[425998909,1782088250000,-500.0,0.00027397,2]
[425998912,1782088250000,-500.0,0.00027397,2]
[425998914,1782088250000,-6809.64,0.00027397,2]
[425998906,1782088250000,-550.83217389,0.00027397,2]
[425998913,1782088250000,-500.0,0.00027397,2]
[425998856,1782088250000,-3976.66,0.00027397,2]
[425998892,1782088250000,-500.0,0.00027397,2]
[425998884,1782088250000,-156.117302,0.00027397,2]
[425998907,1782088250000,-500.0,0.00027397,2]
[425998886,1782088250000,-2067.75,0.00027397,2]
[425998887,1782088250000,-500.0,0.00027397,2]
[425998854,1782088250000,-2562.14,0.00027397,2]
[425998857,1782088250000,-500.0,0.00027397,2]
[425998852,1782088250000,-500.0,0.00027397,2]
[425998860,1782088250000,-1000.0,0.00027397,2]
[425998861,1782088250000,-500.0,0.00027397,2]
[425998866,1782088250000,-708.29,0.00027397,2]
[425998863,1782088250000,-151.0,0.00027397,2]
[425998870,1782088250000,-151.0,0.00027397,2]
[425998869,1782088250000,-500.0,0.00027397,2]
[425998862,1782088250000,-500.0,0.00027397,2]
[425998867,1782088250000,-500.0,0.00027397,2]
[425998865,1782088250000,-500.0,0.00027397,2]
[425998868,1782088250000,-151.0,0.00027397,2]
[425998855,1782088250000,-500.0,0.00027397,2]
[425998872,1782088250000,-3153.19,0.00027397,2]
[425998864,1782088250000,-500.0,0.00027397,2]
[425998877,1782088250000,-500.0,0.00027397,2]
[425998876,1782088250000,-455.0957104,0.00027397,2]
[425998875,1782088250000,-500.0,0.00027397,2]
[425998878,1782088250000,-500.0,0.00027397,2]
[425998879,1782088250000,-14223.8,0.00027397,2]
[425998888,1782088250000,-500.0,0.00027397,2]
[425998873,1782088250000,-500.0,0.00027397,2]
[425998881,1782088250000,-2162.14,0.00027397,2]
[425998882,1782088250000,-500.0,0.00027397,2]
[425998880,1782088250000,-500.0,0.00027397,2]
[425998874,1782088250000,-500.0,0.00027397,2]
[425998871,1782088250000,-151.0,0.00027397,2]
[425998948,1782088251000,-500.0,0.00027397,2]
[425998951,1782088251000,-500.0,0.00027397,2]
[425998946,1782088251000,-742.77,0.00027397,2]
[425998941,1782088251000,-500.0,0.00027397,2]
[425998945,1782088251000,-579.09603838,0.00027397,2]
[425998942,1782088251000,-500.0,0.00027397,2]
[425998949,1782088251000,-500.0,0.00027397,2]
[425998943,1782088251000,-500.0,0.00027397,2]
[425998947,1782088251000,-500.0,0.00027397,2]
[425998944,1782088251000,-1260.98,0.00027397,2]
[425998962,1782088251000,-500.0,0.00027397,2]
[425998953,1782088251000,-500.0,0.00027397,2]
[425998952,1782088251000,-508.21801403,0.00027397,2]
[425998957,1782088251000,-500.0,0.00027397,2]
[425998956,1782088251000,-500.0,0.00027397,2]
[425998959,1782088251000,-839.88,0.00027397,2]
[425998955,1782088251000,-500.0,0.00027397,2]
[425998958,1782088251000,-500.0,0.00027397,2]
[425998960,1782088251000,-500.0,0.00027397,2]
[425998940,1782088251000,-1711.79,0.00027397,2]
[425998954,1782088251000,-500.0,0.00027397,2]
[425998950,1782088251000,-792.02,0.00027397,2]
[425998935,1782088251000,-500.0,0.00027397,2]
[425998921,1782088251000,-4479.0,0.00027397,2]
[425998931,1782088251000,-500.0,0.00027397,2]
[425998961,1782088251000,-500.0,0.00027397,2]
[425998916,1782088251000,-500.0,0.00027397,2]
[425998915,1782088251000,-504.3253233,0.00027397,2]
[425998918,1782088251000,-500.0,0.00027397,2]
[425998917,1782088251000,-6054.54,0.00027397,2]
[425998920,1782088251000,-2524.57,0.00027397,2]
[425998919,1782088251000,-6651.86,0.00027397,2]
[425998925,1782088251000,-500.0,0.00027397,2]
[425998922,1782088251000,-500.0,0.00027397,2]
[425998924,1782088251000,-500.0,0.00027397,2]
[425998936,1782088251000,-500.0,0.00027397,2]
[425998926,1782088251000,-7765.43,0.00027397,2]
[425998927,1782088251000,-500.0,0.00027397,2]
[425998928,1782088251000,-5291.41,0.00027397,2]
[425998939,1782088251000,-2161.69,0.00027397,2]
[425998938,1782088251000,-616.91,0.00027397,2]
[425998930,1782088251000,-500.0,0.00027397,2]
[425998929,1782088251000,-500.0,0.00027397,2]
[425998933,1782088251000,-500.0,0.00027397,2]
[425998932,1782088251000,-500.0,0.00027397,2]
[425998937,1782088251000,-500.0,0.00027397,2]
[425998934,1782088251000,-1492.37,0.00027397,2]
[425998923,1782088251000,-500.0,0.00027397,2]
[425998965,1782088251000,-500.0,0.00027397,2]
[425998963,1782088251000,-10062.43,0.00027397,2]
[425998969,1782088251000,-1838.0,0.00027397,2]
[425998992,1782088251000,-544.71,0.00027397,2]
[425998991,1782088251000,-509.08760568,0.00027397,2]
[425998990,1782088251000,-663.29,0.00027397,2]
[425998995,1782088251000,-500.0,0.00027397,2]
[425999005,1782088251000,-500.0,0.00027397,2]
[425999001,1782088251000,-500.0,0.00027397,2]
[425999004,1782088251000,-611.66835038,0.00027397,2]
[425998997,1782088251000,-500.0,0.00027397,2]
[425998996,1782088251000,-500.0,0.00027397,2]
[425999003,1782088251000,-500.0,0.00027397,2]
[425998994,1782088251000,-9756.35,0.00027397,2]
[425998999,1782088251000,-500.0,0.00027397,2]
[425999000,1782088251000,-500.0,0.00027397,2]
[425999007,1782088251000,-500.0,0.00027397,2]
[425999008,1782088251000,-500.0,0.00027397,2]
[425999006,1782088251000,-500.0,0.00027397,2]
[425999011,1782088251000,-500.0,0.00027397,2]
[425999014,1782088251000,-526.72,0.00027397,2]
[425999009,1782088251000,-325.11260092,0.00027397,2]
[425999012,1782088251000,-9214.17,0.00027397,2]
[425999013,1782088251000,-6492.23,0.00027397,2]
[425999010,1782088251000,-500.0,0.00027397,2]
[425999002,1782088251000,-500.0,0.00027397,2]
[425998993,1782088251000,-225.4268688,0.00027397,2]
[425998998,1782088251000,-500.0,0.00027397,2]
[425998988,1782088251000,-305.16978419,0.00027397,2]
[425998989,1782088251000,-584.33,0.00027397,2]
[425998966,1782088251000,-500.0,0.00027397,2]
[425998968,1782088251000,-500.0,0.00027397,2]
[425998971,1782088251000,-8007.26,0.00027397,2]
[425998964,1782088251000,-649.9,0.00027397,2]
[425998967,1782088251000,-4374.98,0.00027397,2]
[425998972,1782088251000,-6063.26,0.00027397,2]
[425998973,1782088251000,-500.0,0.00027397,2]
[425998975,1782088251000,-500.0,0.00027397,2]
[425998977,1782088251000,-1094.84,0.00027397,2]
[425998978,1782088251000,-3943.46,0.00027397,2]
[425998970,1782088251000,-500.0,0.00027397,2]
[425998985,1782088251000,-500.0,0.00027397,2]
[425998976,1782088251000,-500.0,0.00027397,2]
[425998979,1782088251000,-500.0,0.00027397,2]
[425998982,1782088251000,-4711.68,0.00027397,2]
[425998981,1782088251000,-500.0,0.00027397,2]
[425998980,1782088251000,-500.0,0.00027397,2]
[425998983,1782088251000,-500.0,0.00027397,2]
[425998986,1782088251000,-538.42,0.00027397,2]
[425998984,1782088251000,-5457.26,0.00027397,2]
[425998987,1782088251000,-500.0,0.00027397,2]
[425998974,1782088251000,-500.0,0.00027397,2]
[425999059,1782088252000,-508.92096588,0.00027397,2]
[425999047,1782088252000,-542.98,0.00027397,2]
[425999055,1782088252000,-500.0,0.00027397,2]
[425999057,1782088252000,-500.0,0.00027397,2]
[425999054,1782088252000,-7792.77,0.00027397,2]
[425999051,1782088252000,-2575.79,0.00027397,2]
[425999049,1782088252000,-1286.09,0.00027397,2]
[425999052,1782088252000,-6334.39,0.00027397,2]
[425999056,1782088252000,-11550.03,0.00027397,2]
[425999050,1782088252000,-7552.73,0.00027397,2]
[425999048,1782088252000,-1400.47,0.00027397,2]
[425999053,1782088252000,-500.0,0.00027397,2]
[425999058,1782088252000,-500.0,0.00027397,2]
[425999070,1782088252000,-482.84624611,0.00027397,2]
[425999061,1782088252000,-3089.45,0.00027397,2]
[425999062,1782088252000,-500.0,0.00027397,2]
[425999072,1782088252000,-5012.29,0.00027397,2]
[425999066,1782088252000,-500.0,0.00027397,2]
[425999064,1782088252000,-528.2554322,0.00027397,2]
[425999073,1782088252000,-526.91,0.00027397,2]
[425999074,1782088252000,-500.0,0.00027397,2]
[425999063,1782088252000,-3193.01,0.00027397,2]
[425999065,1782088252000,-8242.89,0.00027397,2]
[425999067,1782088252000,-775.84,0.00027397,2]
[425999069,1782088252000,-1374.02,0.00027397,2]
[425999068,1782088252000,-685.91,0.00027397,2]
[425999042,1782088252000,-3937.89,0.00027397,2]
[425999060,1782088252000,-500.0,0.00027397,2]
[425999043,1782088252000,-500.0,0.00027397,2]
[425999024,1782088252000,-500.0,0.00027397,2]
[425999039,1782088252000,-500.0,0.00027397,2]
[425999018,1782088252000,-3637.92,0.00027397,2]
[425999019,1782088252000,-500.0,0.00027397,2]
[425999017,1782088252000,-500.0,0.00027397,2]
[425999016,1782088252000,-4529.24,0.00027397,2]
[425999015,1782088252000,-500.0,0.00027397,2]
[425999020,1782088252000,-500.0,0.00027397,2]
[425999080,1782088252000,-6146.24,0.00027397,2]
[425999028,1782088252000,-500.0,0.00027397,2]
[425999021,1782088252000,-500.0,0.00027397,2]
[425999027,1782088252000,-500.0,0.00027397,2]
[425999031,1782088252000,-500.0,0.00027397,2]
[425999023,1782088252000,-500.0,0.00027397,2]
[425999026,1782088252000,-500.0,0.00027397,2]
[425999041,1782088252000,-500.0,0.00027397,2]
[425999025,1782088252000,-500.0,0.00027397,2]
[425999030,1782088252000,-537.83,0.00027397,2]
[425999029,1782088252000,-5097.29,0.00027397,2]
[425999032,1782088252000,-500.0,0.00027397,2]
[425999044,1782088252000,-1461.7,0.00027397,2]
[425999045,1782088252000,-4251.04,0.00027397,2]
[425999034,1782088252000,-500.0,0.00027397,2]
[425999033,1782088252000,-1087.92,0.00027397,2]
[425999046,1782088252000,-500.0,0.00027397,2]
[425999036,1782088252000,-696.0,0.00027397,2]
[425999040,1782088252000,-500.0,0.00027397,2]
[425999037,1782088252000,-500.0,0.00027397,2]
[425999035,1782088252000,-500.0,0.00027397,2]
[425999038,1782088252000,-500.0,0.00027397,2]
[425999022,1782088252000,-500.0,0.00027397,2]
[425999083,1782088252000,-500.0,0.00027397,2]
[425999071,1782088252000,-881.97,0.00027397,2]
[425999079,1782088252000,-500.0,0.00027397,2]
[425999111,1782088252000,-7993.66,0.00027397,2]
[425999115,1782088252000,-500.0,0.00027397,2]
[425999117,1782088252000,-507.28434922,0.00027397,2]
[425999118,1782088252000,-9832.59,0.00027397,2]
[425999116,1782088252000,-500.0,0.00027397,2]
[425999110,1782088252000,-500.0,0.00027397,2]
[425999113,1782088252000,-500.0,0.00027397,2]
[425999119,1782088252000,-500.0,0.00027397,2]
[425999112,1782088252000,-621.94,0.00027397,2]
[425999120,1782088252000,-500.0,0.00027397,2]
[425999131,1782088252000,-500.0,0.00027397,2]
[425999123,1782088252000,-500.0,0.00027397,2]
[425999129,1782088252000,-500.0,0.00027397,2]
[425999109,1782088252000,-500.0,0.00027397,2]
[425999122,1782088252000,-500.0,0.00027397,2]
[425999128,1782088252000,-500.0,0.00027397,2]
[425999121,1782088252000,-578.32,0.00027397,2]
[425999124,1782088252000,-6198.55,0.00027397,2]
[425999130,1782088252000,-500.0,0.00027397,2]
[425999127,1782088252000,-625.72,0.00027397,2]
[425999125,1782088252000,-9824.66,0.00027397,2]
[425999132,1782088252000,-500.0,0.00027397,2]
[425999133,1782088252000,-500.0,0.00027397,2]
[425999134,1782088252000,-5622.79,0.00027397,2]
[425999136,1782088252000,-500.0,0.00027397,2]
[425999137,1782088252000,-583.3,0.00027397,2]
[425999135,1782088252000,-500.0,0.00027397,2]
[425999076,1782088252000,-885.69,0.00027397,2]
[425999126,1782088252000,-1000.73,0.00027397,2]
[425999114,1782088252000,-624.56,0.00027397,2]
[425999138,1782088252000,-670.57,0.00027397,2]
[425999107,1782088252000,-500.0,0.00027397,2]
[425999106,1782088252000,-7197.98,0.00027397,2]
[425999082,1782088252000,-500.0,0.00027397,2]
[425999075,1782088252000,-7681.83,0.00027397,2]
[425999078,1782088252000,-500.0,0.00027397,2]
[425999081,1782088252000,-8833.72,0.00027397,2]
[425999085,1782088252000,-507.46803417,0.00027397,2]
[425999084,1782088252000,-1000.0,0.00027397,7]
[425999087,1782088252000,-500.0,0.00027397,2]
[425999090,1782088252000,-893.01,0.00027397,2]
[425999088,1782088252000,-344.24243045,0.00027397,2]
[425999086,1782088252000,-4316.94,0.00027397,2]
[425999097,1782088252000,-1179.09,0.00027397,2]
[425999093,1782088252000,-3941.46,0.00027397,2]
[425999089,1782088252000,-8002.35,0.00027397,2]
[425999077,1782088252000,-500.0,0.00027397,2]
[425999095,1782088252000,-500.0,0.00027397,2]
[425999099,1782088252000,-3312.15,0.00027397,2]
[425999108,1782088252000,-500.0,0.00027397,2]
[425999105,1782088252000,-6103.75,0.00027397,2]
[425999101,1782088252000,-500.0,0.00027397,2]
[425999091,1782088252000,-500.0,0.00027397,2]
[425999103,1782088252000,-500.0,0.00027397,2]
[425999102,1782088252000,-500.0,0.00027397,2]
[425999100,1782088252000,-500.0,0.00027397,2]
[425999098,1782088252000,-500.0,0.00027397,2]
[425999094,1782088252000,-500.0,0.00027397,2]
[425999096,1782088252000,-500.0,0.00027397,2]
[425999092,1782088252000,-515.72,0.00027397,2]
[425999104,1782088252000,-500.0,0.00027397,2]
[425999179,1782088253000,-1449.25,0.00027397,2]
[425999178,1782088253000,-698.52,0.00027397,2]
[425999176,1782088253000,-500.0,0.00027397,2]
[425999168,1782088253000,-6244.9,0.00027397,2]
[425999174,1782088253000,-500.0,0.00027397,2]
[425999175,1782088253000,-500.0,0.00027397,2]
[425999173,1782088253000,-500.0,0.00027397,2]
[425999177,1782088253000,-500.0,0.00027397,2]
[425999170,1782088253000,-514.4,0.00027397,2]
[425999169,1782088253000,-500.0,0.00027397,2]
[425999172,1782088253000,-501.82455083,0.00027397,2]
[425999180,1782088253000,-151.0,0.00027397,2]
[425999186,1782088253000,-500.0,0.00027397,2]
[425999181,1782088253000,-500.0,0.00027397,2]
[425999183,1782088253000,-500.0,0.00027397,2]
[425999188,1782088253000,-500.0,0.00027397,2]
[425999185,1782088253000,-251.07516,0.00027397,2]
[425999187,1782088253000,-500.0,0.00027397,2]
[425999184,1782088253000,-500.0,0.00027397,2]
[425999191,1782088253000,-6700.24,0.00027397,2]
[425999192,1782088253000,-564.34087094,0.00027397,2]